[Event "XVIII Orsha IM 2020"]
[Site "Orsha"]
[Date "2020.01.24"]
[Round "9.2"]
[White "Tsaruk, Maksim"]
[Black "Makoveev, Ilya"]
[Result "*"]
[ECO "A60"]
[WhiteElo "2316"]
[BlackElo "2277"]
[Annotator "RC"]
[PlyCount "64"]
[EventDate "2020.01.18"]
[EventType "tourn"]
[EventCountry "BLR"]
[SourceTitle "playchess.com"]
[Source "ChessBase"]
[SourceQuality "1"]
[TimeControl "5400+30"]

1. d4 {[%emt 0:00:00]} Nf6 {[%emt 0:00:20]} 2. c4 {[%emt 0:00:00]} e6 {[%emt 0:01:40]} 3. g3 {[%emt 0:00:00]} c5 {[%emt 0:02:40]} 4. d5 {[%emt 0:00:12]} exd5 {[%emt 0:00:10]} 5. cxd5 {[%emt 0:00:05]} b5 {[%emt 0:00:10]} 6. e4 {[%emt 0:00:10]} Nxe4 {[%emt 0:00:05]} 7. Qe2 {[%emt 0:00:07]} Qe7 {[%emt 0:00:03]} 8. Bg2 {[%emt 0:00:07]} Nd6 {[%emt 0:16:18]} 9. Be3 {[%emt 0:00:37]} Na6 {[%emt 0:09:04]} 10. Nc3 {[%emt 0:00:24]} b4 {[%emt 0:02:29]} 11. Na4 {[%emt 0:00:05]} g6 {[%emt 0:00:59]} 12. O-O-O {[%emt 0:00:35]} Bg7 {[%emt 0:20:10]} 13. Nxc5 {[%emt 0:00:57]} O-O {[%emt 0:04:42]} 14. Nxa6 {[%emt 0:00:10]} Bxa6 {[%emt 0:00:06]} 15. Qxa6 {[%emt 0:00:05]} Nc4 {[%emt 0:38:34]} 16. d6 {[%emt 1:03:47]} Bxb2+ {[%emt 0:00:00]} 17. Kc2 {[%emt 0:05:48]} Qe5 {[%emt 0:00:00]} 18. Rd5 {[%emt 0:01:29]} Nxe3+ {[%emt 0:00:00]} 19. fxe3 {[%emt 0:00:05]} Rac8+ {[%emt 0:00:00]} 20. Kd2 {[%emt 0:03:45]} Bc1+ {[%emt 0:00:00]} 21. Kd1 {[%emt 0:01:03]} Qa1 {[%emt 0:00:00]} 22. Nf3 {[%emt 0:06:26]} Bxe3+ {[%emt 0:00:00]} 23. Ke2 {[%emt 0:00:04]} Qb2+ {[%emt 0:00:00]} 24. Kxe3 {[%emt 0:01:05]} Rfe8+ {[%emt 0:00:00]} 25. Ne5 {[%emt 0:01:42]} Rxe5+ {[%emt 0:00:00]} 26. Kf4 {[%emt 0:02:46]} Qf2+ {[%emt 0:00:00]} 27. Bf3 {[%emt 0:00:10]} Qe3+ {[%emt 0:01:00]} 28. Kg4 {[%emt 0:00:05]} Qg5+ {[%emt 0:00:03]} 29. Kh3 {[%emt 0:00:07]} Qh6+ {[%emt 0:00:02]} 30. Kg2 {[%emt 0:13:04]} Rc2+ {[%emt 0:00:03]} 31. Kf1 {[%emt 0:00:08]} Qh3+ {[%emt 0:00:09]} 32. Kg1 {[%emt 0:00:08]} Re1+ {[%emt 0:00:03]} *